[Event "December 19 Late 2023"]
[Site "https://www.chess.com"]
[Date "2023.12.19"]
[Round "10"]
[White "Azar, Sebastien"]
[Black "O`Gorman, Tom"]
[Result "0-1"]
[Board "56"]
[TimeControl "180+1"]
[WhiteFideId "2640198"]
[BlackFideId "2508249"]
[WhiteElo "2404"]
[BlackElo "2288"]
[WhiteTeam "CAN"]
[BlackTeam "IRL"]
[WhiteClock "0:00:23"]
[BlackClock "0:00:41"]

1. e4 {[%clk 0:03:00]}  e5 {[%clk 0:02:57]} 2. Nf3 {[%clk 0:03:00]}  Nc6 {[%clk 0:02:58]} 3. Bb5 {[%clk 0:03:00]}  a6 {[%clk 0:02:57]} 4. Ba4 {[%clk 0:03:00]}  Nf6 {[%clk 0:02:57]} 5. d3 {[%clk 0:03:00]}  d6 {[%clk 0:02:55]} 6. O-O {[%clk 0:03:00]}  g6 {[%clk 0:02:55]} 7. c3 {[%clk 0:03:00]}  Bg7 {[%clk 0:02:55]} 8. h3 {[%clk 0:02:58]}  O-O {[%clk 0:02:54]} 9. Re1 {[%clk 0:02:58]}  Nd7 {[%clk 0:02:46]} 10. Nbd2 {[%clk 0:02:54]}  h6 {[%clk 0:02:46]} 11. Nf1 {[%clk 0:02:50]}  f5 {[%clk 0:02:41]} 12. Ne3 {[%clk 0:02:38]}  f4 {[%clk 0:02:26]} 13. Nd5 {[%clk 0:02:30]}  Nc5 {[%clk 0:02:26]} 14. Bc2 {[%clk 0:02:28]}  Ne7 {[%clk 0:02:26]} 15. d4 {[%clk 0:02:27]}  Ne6 {[%clk 0:02:24]} 16. Qe2 {[%clk 0:02:12]}  c6 {[%clk 0:02:23]} 17. Nxe7+ {[%clk 0:02:10]}  Qxe7 {[%clk 0:02:24]} 18. Bb3 {[%clk 0:02:08]}  Kh8 {[%clk 0:02:22]} 19. Rd1 {[%clk 0:02:08]}  Ng5 {[%clk 0:01:51]} 20. a4 {[%clk 0:01:54]}  Nxh3+ {[%clk 0:01:31]} 21. gxh3 {[%clk 0:01:52]}  Bxh3 {[%clk 0:01:32]} 22. Nh2 {[%clk 0:01:30]}  Qh4 {[%clk 0:01:26]} 23. Qf3 {[%clk 0:01:18]}  g5 {[%clk 0:01:17]} 24. Nf1 {[%clk 0:01:01]}  g4 {[%clk 0:01:00]} 25. Qh1 {[%clk 0:00:59]}  g3 {[%clk 0:00:57]} 26. fxg3 {[%clk 0:01:00]}  fxg3 {[%clk 0:00:58]} 27. Be6 {[%clk 0:00:38]}  g2 {[%clk 0:00:42]} 28. Qxh3 {[%clk 0:00:22]}  Qf2+ {[%clk 0:00:42]} 29. Kh2 {[%clk 0:00:23]}  g1=Q# {[%clk 0:00:41]} 0-1

[Event "December 19 Late 2023"]
[Site "https://www.chess.com"]
[Date "2023.12.19"]
[Round "10"]
[White "Vargas Rodriguez, Wilver"]
[Black "Makaraci, Tunahan"]
[Result "1-0"]
[Board "58"]
[TimeControl "180+1"]
[WhiteFideId "3509672"]
[BlackFideId "6356559"]
[WhiteElo "2210"]
[BlackElo "2112"]
[WhiteTeam "CUB"]
[BlackTeam "TUR"]
[WhiteClock "0:00:04"]
[BlackClock "0:00:04"]

1. e4 {[%clk 0:03:00]}  Nf6 {[%clk 0:02:57]} 2. e5 {[%clk 0:03:00]}  Nd5 {[%clk 0:02:56]} 3. c4 {[%clk 0:03:00]}  Nb6 {[%clk 0:02:56]} 4. c5 {[%clk 0:03:00]}  Nd5 {[%clk 0:02:57]} 5. Nc3 {[%clk 0:03:01]}  e6 {[%clk 0:02:57]} 6. Nxd5 {[%clk 0:03:01]}  exd5 {[%clk 0:02:57]} 7. d4 {[%clk 0:03:02]}  d6 {[%clk 0:02:57]} 8. cxd6 {[%clk 0:03:03]}  cxd6 {[%clk 0:02:58]} 9. Nf3 {[%clk 0:03:03]}  Nc6 {[%clk 0:02:58]} 10. Bd3 {[%clk 0:03:04]}  dxe5 {[%clk 0:02:58]} 11. Nxe5 {[%clk 0:03:03]}  Bd6 {[%clk 0:02:27]} 12. Nxc6 {[%clk 0:03:00]}  bxc6 {[%clk 0:02:27]} 13. Qh5 {[%clk 0:02:58]}  g6 {[%clk 0:02:19]} 14. Qh6 {[%clk 0:02:54]}  Qf6 {[%clk 0:02:06]} 15. Qe3+ {[%clk 0:02:35]}  Be6 {[%clk 0:02:04]} 16. O-O {[%clk 0:02:32]}  O-O {[%clk 0:02:03]} 17. f4 {[%clk 0:02:13]}  Bf5 {[%clk 0:02:02]} 18. Bxf5 {[%clk 0:02:10]}  Qxf5 {[%clk 0:02:01]} 19. Qc3 {[%clk 0:02:10]}  Rac8 {[%clk 0:01:54]} 20. Be3 {[%clk 0:02:09]}  Rfe8 {[%clk 0:01:53]} 21. Rae1 {[%clk 0:02:08]}  h5 {[%clk 0:01:47]} 22. Bd2 {[%clk 0:02:02]}  Rxe1 {[%clk 0:01:35]} 23. Rxe1 {[%clk 0:02:03]}  Bxf4 {[%clk 0:01:25]} 24. Bxf4 {[%clk 0:02:01]}  Qxf4 {[%clk 0:01:25]} 25. Qc5 {[%clk 0:01:45]}  a6 {[%clk 0:01:15]} 26. h4 {[%clk 0:01:37]}  Qxh4 {[%clk 0:01:09]} 27. Re7 {[%clk 0:01:29]}  Qf4 {[%clk 0:00:56]} 28. b3 {[%clk 0:01:26]}  h4 {[%clk 0:00:55]} 29. Qc3 {[%clk 0:01:17]}  Qf6 {[%clk 0:00:47]} 30. Re5 {[%clk 0:01:09]}  Kg7 {[%clk 0:00:41]} 31. b4 {[%clk 0:01:08]}  Qf4 {[%clk 0:00:34]} 32. a3 {[%clk 0:01:00]}  Rh8 {[%clk 0:00:24]} 33. Re3 {[%clk 0:00:57]}  Qd6 {[%clk 0:00:19]} 34. Re5 {[%clk 0:00:55]}  Rh5 {[%clk 0:00:16]} 35. Rxh5 {[%clk 0:00:37]}  gxh5 {[%clk 0:00:16]} 36. Qf3 {[%clk 0:00:35]}  Qg6 {[%clk 0:00:15]} 37. Qe3 {[%clk 0:00:12]}  Qf5 {[%clk 0:00:14]} 38. Qc3 {[%clk 0:00:10]}  Qg4 {[%clk 0:00:10]} 39. Kh1 {[%clk 0:00:09]}  Qg6 {[%clk 0:00:06]} 40. Qe3 {[%clk 0:00:07]}  Qf6 {[%clk 0:00:05]} 41. Qc3 {[%clk 0:00:07]}  Kg6 {[%clk 0:00:05]} 42. Kh2 {[%clk 0:00:07]}  Kg5 {[%clk 0:00:05]} 43. Kh1 {[%clk 0:00:06]}  Qf1+ {[%clk 0:00:05]} 44. Kh2 {[%clk 0:00:04]}  Qf4+ {[%clk 0:00:06]} 45. Kh1 {[%clk 0:00:05]}  Qd6 {[%clk 0:00:06]} 46. Qe3+ {[%clk 0:00:04]}  Kg6 {[%clk 0:00:06]} 47. Qd3+ {[%clk 0:00:05]}  f5 {[%clk 0:00:06]} 48. Qxa6 {[%clk 0:00:05]}  f4 {[%clk 0:00:04]} 49. b5 {[%clk 0:00:05]}  Qe6 {[%clk 0:00:03]} 50. Qxc6 {[%clk 0:00:04]}  Kf6 {[%clk 0:00:03]} 51. Qxe6+ {[%clk 0:00:03]}  Kxe6 {[%clk 0:00:03]} 52. a4 {[%clk 0:00:03]}  Kd6 {[%clk 0:00:04]} 53. a5 {[%clk 0:00:03]}  Kc7 {[%clk 0:00:05]} 54. b6+ {[%clk 0:00:03]}  Kb7 {[%clk 0:00:05]} 55. Kh2 {[%clk 0:00:03]}  Ka6 {[%clk 0:00:06]} 56. Kh3 {[%clk 0:00:04]}  f3 {[%clk 0:00:07]} 57. gxf3 {[%clk 0:00:04]}  Kb7 {[%clk 0:00:04]} 58. Kxh4 {[%clk 0:00:04]} 1-0

[Event "December 19 Late 2023"]
[Site "https://www.chess.com"]
[Date "2023.12.19"]
[Round "10"]
[White "Rees, Ioan"]
[Black "Hamidi, Amir Mohammad"]
[Result "1-0"]
[Board "59"]
[TimeControl "180+1"]
[WhiteFideId "1801236"]
[BlackFideId "12563285"]
[WhiteElo "2270"]
[BlackElo "2217"]
[WhiteTeam "WLS"]
[BlackTeam "IRI"]
[WhiteClock "0:01:01"]
[BlackClock "0:00:00"]

1. e4 {[%clk 0:02:58]}  c5 {[%clk 0:02:47]} 2. c3 {[%clk 0:02:57]}  Nf6 {[%clk 0:02:46]} 3. e5 {[%clk 0:02:57]}  Nd5 {[%clk 0:02:46]} 4. Nf3 {[%clk 0:02:57]}  Nc6 {[%clk 0:02:46]} 5. Bc4 {[%clk 0:02:58]}  Nb6 {[%clk 0:02:46]} 6. Bb3 {[%clk 0:02:58]}  d6 {[%clk 0:02:46]} 7. d4 {[%clk 0:02:55]}  cxd4 {[%clk 0:02:46]} 8. cxd4 {[%clk 0:02:55]}  dxe5 {[%clk 0:02:46]} 9. Nxe5 {[%clk 0:02:48]}  Nxe5 {[%clk 0:02:41]} 10. dxe5 {[%clk 0:02:49]}  Qxd1+ {[%clk 0:02:30]} 11. Kxd1 {[%clk 0:02:50]}  Bf5 {[%clk 0:02:28]} 12. Nc3 {[%clk 0:02:48]}  e6 {[%clk 0:02:28]} 13. Be3 {[%clk 0:02:46]}  Rd8+ {[%clk 0:02:22]} 14. Ke1 {[%clk 0:02:44]}  Bb4 {[%clk 0:02:21]} 15. Rc1 {[%clk 0:02:38]}  O-O {[%clk 0:02:18]} 16. f3 {[%clk 0:02:31]}  Rd3 {[%clk 0:02:13]} 17. Kf2 {[%clk 0:02:28]}  Rfd8 {[%clk 0:02:04]} 18. g4 {[%clk 0:02:20]}  Bg6 {[%clk 0:02:02]} 19. Rhd1 {[%clk 0:02:12]}  Bxc3 {[%clk 0:01:54]} 20. Rxd3 {[%clk 0:02:03]}  Rxd3 {[%clk 0:01:36]} 21. Rxc3 {[%clk 0:02:03]}  Rxc3 {[%clk 0:01:11]} 22. bxc3 {[%clk 0:02:04]}  Kf8 {[%clk 0:01:05]} 23. a4 {[%clk 0:01:55]}  Ke7 {[%clk 0:00:50]} 24. a5 {[%clk 0:01:52]}  Nc8 {[%clk 0:00:49]} 25. Bc5+ {[%clk 0:01:48]}  Kd8 {[%clk 0:00:44]} 26. Bf8 {[%clk 0:01:45]}  Kc7 {[%clk 0:00:28]} 27. Bxg7 {[%clk 0:01:43]}  Kc6 {[%clk 0:00:27]} 28. Bf8 {[%clk 0:01:36]}  Kb5 {[%clk 0:00:24]} 29. Bb4 {[%clk 0:01:37]}  b6 {[%clk 0:00:15]} 30. axb6 {[%clk 0:01:36]}  Nxb6 {[%clk 0:00:16]} 31. Ke3 {[%clk 0:01:33]}  a5 {[%clk 0:00:16]} 32. Bd6 {[%clk 0:01:31]}  a4 {[%clk 0:00:15]} 33. Ba2 {[%clk 0:01:29]}  Nc4+ {[%clk 0:00:14]} 34. Kd4 {[%clk 0:01:25]}  Nxd6 {[%clk 0:00:06]} 35. exd6 {[%clk 0:01:24]}  Kc6 {[%clk 0:00:06]} 36. Ke5 {[%clk 0:01:24]}  Bc2 {[%clk 0:00:05]} 37. Bxe6 {[%clk 0:00:59]}  fxe6 {[%clk 0:00:04]} 38. Kxe6 {[%clk 0:01:00]}  Bb3+ {[%clk 0:00:00]} 39. Ke7 {[%clk 0:01:01]} 1-0

[Event "December 19 Late 2023"]
[Site "https://www.chess.com"]
[Date "2023.12.19"]
[Round "10"]
[White "Novikova, Galina"]
[Black "Spata, German"]
[Result "0-1"]
[Board "61"]
[TimeControl "180+1"]
[WhiteFideId "4157095"]
[BlackFideId "113026"]
[WhiteElo "1972"]
[BlackElo "2260"]
[WhiteTeam "RUS"]
[BlackTeam "ARG"]
[WhiteClock "0:00:00"]
[BlackClock "0:00:04"]

1. e4 {[%clk 0:03:00]}  c5 {[%clk 0:02:44]} 2. Nf3 {[%clk 0:03:01]}  a6 {[%clk 0:02:42]} 3. b4 {[%clk 0:03:01]}  cxb4 {[%clk 0:02:41]} 4. a3 {[%clk 0:03:01]}  e6 {[%clk 0:02:37]} 5. axb4 {[%clk 0:03:01]}  Bxb4 {[%clk 0:02:38]} 6. c3 {[%clk 0:03:02]}  Be7 {[%clk 0:02:37]} 7. d4 {[%clk 0:03:02]}  d6 {[%clk 0:02:37]} 8. Bd3 {[%clk 0:03:02]}  Nf6 {[%clk 0:02:38]} 9. O-O {[%clk 0:03:03]}  O-O {[%clk 0:02:37]} 10. e5 {[%clk 0:03:03]}  dxe5 {[%clk 0:02:30]} 11. dxe5 {[%clk 0:03:04]}  Nfd7 {[%clk 0:02:30]} 12. Qe2 {[%clk 0:03:01]}  Nc5 {[%clk 0:02:29]} 13. Bc2 {[%clk 0:02:58]}  b5 {[%clk 0:02:29]} 14. Rd1 {[%clk 0:02:47]}  Qc7 {[%clk 0:02:28]} 15. h4 {[%clk 0:02:29]}  Bb7 {[%clk 0:02:17]} 16. Bf4 {[%clk 0:02:29]}  Nbd7 {[%clk 0:02:09]} 17. h5 {[%clk 0:02:30]}  Bxf3 {[%clk 0:01:43]} 18. Qxf3 {[%clk 0:02:27]}  Nxe5 {[%clk 0:01:43]} 19. Qg3 {[%clk 0:02:26]}  f6 {[%clk 0:01:41]} 20. Nd2 {[%clk 0:01:51]}  Bd6 {[%clk 0:01:32]} 21. Ne4 {[%clk 0:01:19]}  Nxe4 {[%clk 0:01:28]} 22. Bxe4 {[%clk 0:01:20]}  Rad8 {[%clk 0:01:20]} 23. Rxa6 {[%clk 0:01:14]}  Nf3+ {[%clk 0:00:59]} 24. Qxf3 {[%clk 0:01:14]}  Bxf4 {[%clk 0:01:00]} 25. Rda1 {[%clk 0:01:01]}  Be5 {[%clk 0:00:52]} 26. Rc6 {[%clk 0:00:50]}  Qd7 {[%clk 0:00:45]} 27. Rca6 {[%clk 0:00:36]}  f5 {[%clk 0:00:38]} 28. Bc2 {[%clk 0:00:29]}  Kh8 {[%clk 0:00:26]} 29. g3 {[%clk 0:00:29]}  b4 {[%clk 0:00:26]} 30. h6 {[%clk 0:00:21]}  Bxc3 {[%clk 0:00:24]} 31. hxg7+ {[%clk 0:00:22]}  Bxg7 {[%clk 0:00:24]} 32. Re1 {[%clk 0:00:18]}  Qd2 {[%clk 0:00:20]} 33. Re2 {[%clk 0:00:18]}  Qc3 {[%clk 0:00:20]} 34. Qxc3 {[%clk 0:00:13]}  bxc3 {[%clk 0:00:21]} 35. Raxe6 {[%clk 0:00:14]}  f4 {[%clk 0:00:21]} 36. gxf4 {[%clk 0:00:09]}  Rxf4 {[%clk 0:00:22]} 37. Re7 {[%clk 0:00:09]}  Rff8 {[%clk 0:00:20]} 38. Rc7 {[%clk 0:00:08]}  Rd2 {[%clk 0:00:19]} 39. Rce7 {[%clk 0:00:07]}  Rxe2 {[%clk 0:00:17]} 40. Rxe2 {[%clk 0:00:08]}  Rd8 {[%clk 0:00:16]} 41. Kf1 {[%clk 0:00:07]}  Bf6 {[%clk 0:00:16]} 42. f3 {[%clk 0:00:07]}  Kg7 {[%clk 0:00:16]} 43. Be4 {[%clk 0:00:07]}  Bg5 {[%clk 0:00:16]} 44. Rc2 {[%clk 0:00:07]}  Bd2 {[%clk 0:00:15]} 45. Ke2 {[%clk 0:00:08]}  h5 {[%clk 0:00:15]} 46. Ra2 {[%clk 0:00:06]}  Rd6 {[%clk 0:00:11]} 47. Ra7+ {[%clk 0:00:06]}  Kf6 {[%clk 0:00:10]} 48. Bc2 {[%clk 0:00:07]}  h4 {[%clk 0:00:09]} 49. Ra4 {[%clk 0:00:07]}  Bg5 {[%clk 0:00:08]} 50. Bd3 {[%clk 0:00:06]}  Re6+ {[%clk 0:00:06]} 51. Kf2 {[%clk 0:00:04]}  Rd6 {[%clk 0:00:07]} 52. Ke2 {[%clk 0:00:04]}  Rc6 {[%clk 0:00:07]} 53. Bc2 {[%clk 0:00:03]}  Re6+ {[%clk 0:00:06]} 54. Kf2 {[%clk 0:00:04]}  Rd6 {[%clk 0:00:05]} 55. Be4 {[%clk 0:00:03]}  Rd2+ {[%clk 0:00:05]} 56. Ke1 {[%clk 0:00:04]}  Rg2 {[%clk 0:00:04]} 57. Rc4 {[%clk 0:00:03]}  h3 {[%clk 0:00:04]} 58. Rc6+ {[%clk 0:00:04]}  Ke5 {[%clk 0:00:04]} 59. Kf1 {[%clk 0:00:05]}  Rb2 {[%clk 0:00:03]} 60. Rc5+ {[%clk 0:00:04]}  Kf4 {[%clk 0:00:03]} 61. Rf5+ {[%clk 0:00:04]}  Ke3 {[%clk 0:00:03]} 62. Rxg5 {[%clk 0:00:05]}  h2 {[%clk 0:00:03]} 63. Rh5 {[%clk 0:00:05]}  c2 {[%clk 0:00:03]} 64. Kg2 {[%clk 0:00:06]}  c1=Q+ {[%clk 0:00:04]} 65. Kg3 {[%clk 0:00:04]}  h1=Q {[%clk 0:00:04]} 66. Rh2 {[%clk 0:00:00]}  Qxh2+ {[%clk 0:00:04]} 0-1

[Event "December 19 Late 2023"]
[Site "https://www.chess.com"]
[Date "2023.12.19"]
[Round "10"]
[White "Lopusiewicz, Piotr"]
[Black "Asish Panda"]
[Result "1/2-1/2"]
[Board "62"]
[TimeControl "180+1"]
[WhiteFideId "1116029"]
[BlackFideId "45012458"]
[WhiteElo "2286"]
[BlackElo "1767"]
[WhiteTeam "POL"]
[BlackTeam "IND"]
[WhiteClock "0:00:10"]
[BlackClock "0:00:58"]

1. d4 {[%clk 0:03:00]}  d5 {[%clk 0:02:59]} 2. c4 {[%clk 0:03:01]}  e6 {[%clk 0:02:58]} 3. Nf3 {[%clk 0:03:01]}  Nf6 {[%clk 0:02:58]} 4. Nc3 {[%clk 0:03:01]}  Be7 {[%clk 0:02:58]} 5. g3 {[%clk 0:03:01]}  O-O {[%clk 0:02:58]} 6. Bg2 {[%clk 0:03:01]}  b6 {[%clk 0:02:58]} 7. cxd5 {[%clk 0:02:56]}  exd5 {[%clk 0:02:58]} 8. O-O {[%clk 0:02:55]}  Bb7 {[%clk 0:02:58]} 9. Bf4 {[%clk 0:02:53]}  a6 {[%clk 0:02:58]} 10. Rc1 {[%clk 0:02:53]}  Nbd7 {[%clk 0:02:58]} 11. Ne5 {[%clk 0:02:52]}  c5 {[%clk 0:02:56]} 12. e3 {[%clk 0:02:47]}  Re8 {[%clk 0:02:53]} 13. h4 {[%clk 0:02:47]}  cxd4 {[%clk 0:02:44]} 14. exd4 {[%clk 0:02:44]}  Nf8 {[%clk 0:02:44]} 15. Qb3 {[%clk 0:02:40]}  Ne6 {[%clk 0:02:41]} 16. Be3 {[%clk 0:02:39]}  b5 {[%clk 0:02:28]} 17. Ne2 {[%clk 0:02:25]}  Bd6 {[%clk 0:02:16]} 18. Rfd1 {[%clk 0:02:22]}  Bxe5 {[%clk 0:02:04]} 19. dxe5 {[%clk 0:02:22]}  Ng4 {[%clk 0:02:00]} 20. Bxd5 {[%clk 0:02:14]}  Nxe3 {[%clk 0:01:58]} 21. Bxb7 {[%clk 0:02:07]}  Nxd1 {[%clk 0:01:58]} 22. Rxd1 {[%clk 0:02:08]}  Qc7 {[%clk 0:01:56]} 23. Bxa8 {[%clk 0:02:08]}  Rxa8 {[%clk 0:01:55]} 24. Rd6 {[%clk 0:01:57]}  Qc5 {[%clk 0:01:45]} 25. Qd5 {[%clk 0:01:53]}  Qxd5 {[%clk 0:01:42]} 26. Rxd5 {[%clk 0:01:53]}  Rc8 {[%clk 0:01:40]} 27. Rd2 {[%clk 0:01:30]}  h6 {[%clk 0:01:35]} 28. f4 {[%clk 0:01:27]}  g6 {[%clk 0:01:32]} 29. Kf2 {[%clk 0:01:25]}  h5 {[%clk 0:01:31]} 30. a3 {[%clk 0:01:23]}  a5 {[%clk 0:01:26]} 31. Nc3 {[%clk 0:01:22]}  b4 {[%clk 0:01:26]} 32. axb4 {[%clk 0:01:22]}  axb4 {[%clk 0:01:26]} 33. Nd5 {[%clk 0:01:22]}  Rc4 {[%clk 0:01:23]} 34. Ke3 {[%clk 0:01:07]}  Nc5 {[%clk 0:01:21]} 35. Nf6+ {[%clk 0:01:02]}  Kg7 {[%clk 0:01:15]} 36. Rd8 {[%clk 0:01:01]}  Rc2 {[%clk 0:01:07]} 37. Rc8 {[%clk 0:00:47]}  b3 {[%clk 0:01:03]} 38. Rg8+ {[%clk 0:00:13]}  Kh6 {[%clk 0:01:03]} 39. Rh8+ {[%clk 0:00:13]}  Kg7 {[%clk 0:01:04]} 40. Rg8+ {[%clk 0:00:11]}  Kh6 {[%clk 0:01:03]} 41. Rh8+ {[%clk 0:00:11]}  Kg7 {[%clk 0:01:03]} 42. Rh7+ {[%clk 0:00:11]}  Kf8 {[%clk 0:01:03]} 43. Rh8+ {[%clk 0:00:10]}  Kg7 {[%clk 0:00:58]} 1/2-1/2

[Event "December 19 Late 2023"]
[Site "https://www.chess.com"]
[Date "2023.12.19"]
[Round "10"]
[White "Akhayan, Ruben"]
[Black "Silvestre, Christian"]
[Result "1-0"]
[Board "68"]
[TimeControl "180+1"]
[WhiteFideId "204439"]
[BlackFideId "30956269"]
[WhiteElo "2141"]
[BlackElo "2287"]
[WhiteTeam "BEL"]
[BlackTeam "USA"]
[WhiteClock "0:00:04"]
[BlackClock "0:00:12"]

1. e4 {[%clk 0:03:00]}  c5 {[%clk 0:02:39]} 2. Nf3 {[%clk 0:03:01]}  Nc6 {[%clk 0:02:34]} 3. Nc3 {[%clk 0:03:00]}  g6 {[%clk 0:02:27]} 4. Bc4 {[%clk 0:02:56]}  e6 {[%clk 0:02:24]} 5. O-O {[%clk 0:02:56]}  Nge7 {[%clk 0:02:23]} 6. d4 {[%clk 0:02:57]}  cxd4 {[%clk 0:02:23]} 7. Nb5 {[%clk 0:02:57]}  d5 {[%clk 0:02:22]} 8. exd5 {[%clk 0:02:56]}  exd5 {[%clk 0:02:23]} 9. Bf4 {[%clk 0:02:49]}  dxc4 {[%clk 0:02:19]} 10. Nd6+ {[%clk 0:02:49]}  Kd7 {[%clk 0:02:20]} 11. Nxf7 {[%clk 0:02:47]}  Qe8 {[%clk 0:02:19]} 12. N3e5+ {[%clk 0:02:20]}  Nxe5 {[%clk 0:02:17]} 13. Qxd4+ {[%clk 0:02:07]}  Ke6 {[%clk 0:02:12]} 14. Ng5+ {[%clk 0:02:00]}  Kf5 {[%clk 0:01:59]} 15. Qxe5+ {[%clk 0:01:54]}  Kg4 {[%clk 0:02:00]} 16. f3+ {[%clk 0:01:24]}  Kh4 {[%clk 0:02:01]} 17. g3+ {[%clk 0:01:16]}  Kh5 {[%clk 0:00:55]} 18. g4+ {[%clk 0:01:15]}  Bxg4 {[%clk 0:00:52]} 19. fxg4+ {[%clk 0:01:15]}  Kxg4 {[%clk 0:00:53]} 20. h3+ {[%clk 0:01:10]}  Kh5 {[%clk 0:00:22]} 21. Qxh8 {[%clk 0:00:40]}  Nf5 {[%clk 0:00:22]} 22. Qxh7+ {[%clk 0:00:30]}  Bh6 {[%clk 0:00:22]} 23. Qf7 {[%clk 0:00:19]}  Qc6 {[%clk 0:00:18]} 24. Qe6 {[%clk 0:00:05]}  Qc5+ {[%clk 0:00:14]} 25. Kh1 {[%clk 0:00:04]}  Nh4 {[%clk 0:00:14]} 26. Qe2+ {[%clk 0:00:04]}  Nf3 {[%clk 0:00:11]} 27. Qxf3+ {[%clk 0:00:04]}  Kh4 {[%clk 0:00:12]} 28. Qg4# {[%clk 0:00:04]} 1-0

[Event "December 19 Late 2023"]
[Site "https://www.chess.com"]
[Date "2023.12.19"]
[Round "10"]
[White "ajian"]
[Black "Aghasiyev, Kamal"]
[Result "0-1"]
[Board "70"]
[TimeControl "180+1"]
[BlackFideId "13402854"]
[WhiteElo "2400"]
[BlackElo "2196"]
[BlackTeam "AZE"]
[WhiteClock "0:00:04"]
[BlackClock "0:01:37"]

1. d4 {[%clk 0:03:00]}  d5 {[%clk 0:02:59]} 2. c4 {[%clk 0:03:00]}  e6 {[%clk 0:02:58]} 3. Nc3 {[%clk 0:03:00]}  Nf6 {[%clk 0:02:58]} 4. cxd5 {[%clk 0:03:00]}  exd5 {[%clk 0:02:58]} 5. Bg5 {[%clk 0:03:00]}  c6 {[%clk 0:02:58]} 6. Qc2 {[%clk 0:03:00]}  Nbd7 {[%clk 0:02:58]} 7. e3 {[%clk 0:03:00]}  Be7 {[%clk 0:02:58]} 8. Bd3 {[%clk 0:03:00]}  h6 {[%clk 0:02:57]} 9. Bf4 {[%clk 0:03:00]}  Nh5 {[%clk 0:02:54]} 10. Bg3 {[%clk 0:02:30]}  O-O {[%clk 0:02:48]} 11. Nge2 {[%clk 0:02:29]}  Nxg3 {[%clk 0:02:43]} 12. Nxg3 {[%clk 0:02:26]}  Nf6 {[%clk 0:02:40]} 13. O-O {[%clk 0:02:26]}  Bd6 {[%clk 0:02:38]} 14. Rab1 {[%clk 0:02:25]}  a5 {[%clk 0:02:36]} 15. a3 {[%clk 0:02:25]}  Ng4 {[%clk 0:02:36]} 16. Be2 {[%clk 0:01:41]}  Qh4 {[%clk 0:02:09]} 17. Bxg4 {[%clk 0:01:31]}  Bxg4 {[%clk 0:02:10]} 18. Nce2 {[%clk 0:01:12]}  Bh5 {[%clk 0:02:06]} 19. Rbc1 {[%clk 0:00:46]}  a4 {[%clk 0:02:01]} 20. h3 {[%clk 0:00:29]}  Bg6 {[%clk 0:01:58]} 21. Qd2 {[%clk 0:00:21]}  Rfe8 {[%clk 0:01:53]} 22. Rfe1 {[%clk 0:00:17]}  Qg5 {[%clk 0:01:47]} 23. Kh2 {[%clk 0:00:15]}  h5 {[%clk 0:01:46]} 24. Kg1 {[%clk 0:00:12]}  h4 {[%clk 0:01:45]} 25. Nf1 {[%clk 0:00:11]}  Be4 {[%clk 0:01:45]} 26. g3 {[%clk 0:00:07]}  Qf5 {[%clk 0:01:39]} 27. g4 {[%clk 0:00:04]}  Qf3 {[%clk 0:01:37]} 0-1

[Event "December 19 Late 2023"]
[Site "https://www.chess.com"]
[Date "2023.12.19"]
[Round "10"]
[White "Zavgorodniy, Sergiy"]
[Black "Zhukov, Maksim"]
[Result "1-0"]
[Board "71"]
[TimeControl "180+1"]
[WhiteFideId "14110148"]
[BlackFideId "34181790"]
[WhiteElo "2402"]
[BlackElo "1925"]
[WhiteTeam "UKR"]
[BlackTeam "RUS"]
[WhiteClock "0:01:05"]
[BlackClock "0:00:00"]

1. d4 {[%clk 0:03:00]}  Nf6 {[%clk 0:02:57]} 2. c4 {[%clk 0:03:00]}  e6 {[%clk 0:02:56]} 3. Nf3 {[%clk 0:03:00]}  d5 {[%clk 0:02:54]} 4. e3 {[%clk 0:03:01]}  Bb4+ {[%clk 0:02:51]} 5. Nbd2 {[%clk 0:03:01]}  O-O {[%clk 0:02:48]} 6. Bd3 {[%clk 0:03:00]}  dxc4 {[%clk 0:02:46]} 7. Bxc4 {[%clk 0:03:00]}  a6 {[%clk 0:02:45]} 8. O-O {[%clk 0:03:00]}  b5 {[%clk 0:02:44]} 9. Bd3 {[%clk 0:03:00]}  Bb7 {[%clk 0:02:44]} 10. Qe2 {[%clk 0:03:00]}  c5 {[%clk 0:02:41]} 11. dxc5 {[%clk 0:02:55]}  Bxc5 {[%clk 0:02:37]} 12. a3 {[%clk 0:02:55]}  Nc6 {[%clk 0:02:35]} 13. b4 {[%clk 0:02:55]}  Bb6 {[%clk 0:02:34]} 14. Bb2 {[%clk 0:02:56]}  Qe7 {[%clk 0:02:33]} 15. Nb3 {[%clk 0:02:50]}  Rad8 {[%clk 0:02:31]} 16. Rac1 {[%clk 0:02:48]}  h6 {[%clk 0:02:29]} 17. Nc5 {[%clk 0:02:48]}  Bxc5 {[%clk 0:02:28]} 18. Rxc5 {[%clk 0:02:49]}  Nd5 {[%clk 0:02:26]} 19. Rfc1 {[%clk 0:02:47]}  Rc8 {[%clk 0:02:08]} 20. Bb1 {[%clk 0:02:43]}  Na7 {[%clk 0:01:54]} 21. Qc2 {[%clk 0:02:35]}  g6 {[%clk 0:01:48]} 22. Qd3 {[%clk 0:02:30]}  Rxc5 {[%clk 0:01:46]} 23. Rxc5 {[%clk 0:02:31]}  Nc6 {[%clk 0:01:39]} 24. e4 {[%clk 0:02:21]}  Nf4 {[%clk 0:01:34]} 25. Qe3 {[%clk 0:02:16]}  g5 {[%clk 0:01:23]} 26. h4 {[%clk 0:02:10]}  e5 {[%clk 0:01:13]} 27. hxg5 {[%clk 0:02:07]}  Rd8 {[%clk 0:01:02]} 28. Bc2 {[%clk 0:01:54]}  hxg5 {[%clk 0:00:41]} 29. Nxe5 {[%clk 0:01:52]}  Nd4 {[%clk 0:00:24]} 30. Bxd4 {[%clk 0:01:22]}  Rxd4 {[%clk 0:00:25]} 31. Nf3 {[%clk 0:01:23]}  Rxe4 {[%clk 0:00:05]} 32. Bxe4 {[%clk 0:01:18]}  Qxe4 {[%clk 0:00:05]} 33. Rxg5+ {[%clk 0:01:14]}  Ng6 {[%clk 0:00:02]} 34. Qxe4 {[%clk 0:01:07]}  Bxe4 {[%clk 0:00:02]} 35. Ne5 {[%clk 0:01:05]}  f6 {[%clk 0:00:00]} 36. Rxg6+ {[%clk 0:01:05]} 1-0